[Event "Live Chess"]
[Site "Chess.com"]
[Date "2024.06.02"]
[Round "-"]
[White "ShanthamGrarks"]
[Black "booktrunk"]
[Result "1-0"]
[WhiteElo "1897"]
[BlackElo "1509"]
[TimeControl "300"]
[EndTime "19:45:53 PDT"]
[Termination "ShanthamGrarks won by resignation"]

1. d4 {[%clk 0:04:55.8]} 1... b6 {[%clk 0:04:55.3]} 2. Nc3 {[%clk 0:04:54.6]}
2... Bb7 {[%clk 0:04:49.7]} 3. e4 {[%clk 0:04:47.4]} 3... e6 {[%clk 0:04:34.7]}
4. Bd3 {[%clk 0:04:37.8]} 4... h6 {[%clk 0:04:33.6]} 5. Nf3 {[%clk 0:04:36.7]}
5... Nf6 {[%clk 0:04:32.6]} 6. h3 {[%clk 0:04:33.8]} 6... Bb4 {[%clk 0:04:31.4]}
7. Qe2 {[%clk 0:04:25.4]} 7... Bxc3+ {[%clk 0:04:23.7]} 8. bxc3 {[%clk
0:04:09.7]} 8... d6 {[%clk 0:04:22.2]} 9. O-O {[%clk 0:04:00.2]} 9... Nbd7
{[%clk 0:04:18.1]} 10. c4 {[%clk 0:03:36.4]} 10... Qe7 {[%clk 0:04:14.9]} 11.
Ba3 {[%clk 0:03:14.9]} 11... O-O {[%clk 0:04:10.7]} 12. e5 {[%clk 0:03:13.5]}
12... Rfe8 {[%clk 0:04:09]} 13. exf6 {[%clk 0:03:11.8]} 13... Qxf6 {[%clk
0:04:07.5]} 14. Bb2 {[%clk 0:03:08.2]} 14... e5 {[%clk 0:04:04.9]} 15. d5 {[%clk
0:03:06.9]} 15... c6 {[%clk 0:04:02.5]} 16. dxc6 {[%clk 0:02:57.1]} 16... Bxc6
{[%clk 0:04:00.7]} 17. Nd2 {[%clk 0:02:56.4]} 17... Qg5 {[%clk 0:03:56.9]} 18.
f3 {[%clk 0:02:53.7]} 18... Nc5 {[%clk 0:03:53.2]} 19. Ne4 {[%clk 0:02:50.3]}
19... Nxe4 {[%clk 0:03:49.9]} 20. Bxe4 {[%clk 0:02:47.2]} 20... Bxe4 {[%clk
0:03:47.7]} 21. Qxe4 {[%clk 0:02:45.5]} 21... Rac8 {[%clk 0:03:43.5]} 22. Ba3
{[%clk 0:02:38.6]} 22... Qd2 {[%clk 0:03:39.7]} 23. Rad1 {[%clk 0:02:30.6]}
23... Qc3 {[%clk 0:03:38.2]} 24. Rd3 {[%clk 0:02:14.8]} 24... Qxc2 {[%clk
0:03:35.6]} 25. Bxd6 {[%clk 0:02:09.2]} 25... Qxa2 {[%clk 0:03:18.7]} 26. c5
{[%clk 0:01:59.3]} 26... bxc5 {[%clk 0:03:14.9]} 27. Rc1 {[%clk 0:01:54]} 27...
Red8 {[%clk 0:03:02.9]} 28. Qxe5 {[%clk 0:01:46.3]} 28... c4 {[%clk 0:02:59.4]}
29. Rdc3 {[%clk 0:01:44]} 29... Re8 {[%clk 0:02:52.8]} 30. Qd5 {[%clk
0:01:41.1]} 30... Rcd8 {[%clk 0:02:49.4]} 31. Qc6 {[%clk 0:01:37.1]} 31... Re2
{[%clk 0:02:46.7]} 32. f4 {[%clk 0:01:34.2]} 32... Rde8 {[%clk 0:02:41.1]} 33.
R3c2 {[%clk 0:01:28]} 33... Re1+ {[%clk 0:02:38.4]} 34. Kh2 {[%clk 0:01:20.8]}
34... Rd1 {[%clk 0:02:33.8]} 35. Qxe8+ {[%clk 0:01:18.6]} 1-0

[Event "Live Chess"]
[Site "Chess.com"]
[Date "2024.06.02"]
[Round "-"]
[White "KeithArkell"]
[Black "MagnersCarlsberg2870"]
[Result "1-0"]
[WhiteElo "2432"]
[BlackElo "1815"]
[TimeControl "300"]
[EndTime "19:47:17 PDT"]
[Termination "KeithArkell won on time"]

1. d4 {[%clk 0:04:57]} 1... Nf6 {[%clk 0:04:57.3]} 2. Nf3 {[%clk 0:04:56.3]}
2... b6 {[%clk 0:04:52.1]} 3. c4 {[%clk 0:04:55.5]} 3... Bb7 {[%clk 0:04:50.6]}
4. Nc3 {[%clk 0:04:54.8]} 4... Bxf3 {[%clk 0:04:48]} 5. exf3 {[%clk 0:04:53.8]}
5... e6 {[%clk 0:04:46.8]} 6. d5 {[%clk 0:04:52.5]} 6... Bb4 {[%clk 0:04:44.6]}
7. Bd2 {[%clk 0:04:51.2]} 7... O-O {[%clk 0:04:39.9]} 8. Be2 {[%clk 0:04:50.3]}
8... d6 {[%clk 0:04:33.5]} 9. dxe6 {[%clk 0:04:48.8]} 9... fxe6 {[%clk
0:04:32.3]} 10. O-O {[%clk 0:04:48.1]} 10... Nbd7 {[%clk 0:04:26.2]} 11. f4
{[%clk 0:04:47.5]} 11... e5 {[%clk 0:04:23.3]} 12. Bf3 {[%clk 0:04:45.8]} 12...
Rb8 {[%clk 0:04:07.4]} 13. Nd5 {[%clk 0:04:42.9]} 13... Bxd2 {[%clk 0:04:03.9]}
14. Qxd2 {[%clk 0:04:42.1]} 14... e4 {[%clk 0:03:58.2]} 15. Nxf6+ {[%clk
0:04:41.2]} 15... Nxf6 {[%clk 0:03:55.4]} 16. Bxe4 {[%clk 0:04:40.6]} 16... Re8
{[%clk 0:03:45]} 17. Bf3 {[%clk 0:04:39.4]} 17... Qc8 {[%clk 0:03:32.8]} 18.
Rfe1 {[%clk 0:04:37.1]} 18... Qf5 {[%clk 0:03:31.5]} 19. g3 {[%clk 0:04:35.4]}
19... Kh8 {[%clk 0:03:05]} 20. Rad1 {[%clk 0:04:27]} 20... a5 {[%clk 0:03:02.8]}
21. b3 {[%clk 0:04:26.2]} 21... h5 {[%clk 0:02:37.5]} 22. h4 {[%clk 0:04:23.6]}
22... Nd7 {[%clk 0:02:20.6]} 23. Bc6 {[%clk 0:04:21.8]} 23... Rbd8 {[%clk
0:02:01.6]} 24. Qd5 {[%clk 0:04:18.4]} 24... Qxd5 {[%clk 0:01:44.5]} 25. cxd5
{[%clk 0:04:17.5]} 25... Rxe1+ {[%clk 0:01:40.8]} 26. Rxe1 {[%clk 0:04:16.8]}
26... Nc5 {[%clk 0:01:32.2]} 27. Re7 {[%clk 0:04:15.5]} 27... Rc8 {[%clk
0:01:04.1]} 28. Kg2 {[%clk 0:04:12.8]} 28... Kh7 {[%clk 0:01:01.5]} 29. Kf3
{[%clk 0:04:08.3]} 29... Kg6 {[%clk 0:01:00.5]} 30. Re8 {[%clk 0:03:55.3]} 30...
Rxe8 {[%clk 0:00:56.6]} 31. Bxe8+ {[%clk 0:03:54.6]} 31... Kf5 {[%clk
0:00:53.1]} 32. Bxh5 {[%clk 0:03:51.7]} 32... Nd3 {[%clk 0:00:45.2]} 33. a3
{[%clk 0:03:47.4]} 33... Nc1 {[%clk 0:00:43.1]} 34. b4 {[%clk 0:03:46.8]} 34...
axb4 {[%clk 0:00:41.3]} 35. axb4 {[%clk 0:03:46.2]} 35... Nd3 {[%clk 0:00:38]}
36. b5 {[%clk 0:03:45.1]} 36... Nb4 {[%clk 0:00:33.3]} 37. Bf7 {[%clk
0:03:43.7]} 37... Kf6 {[%clk 0:00:30.7]} 38. Be6 {[%clk 0:03:40.8]} 38... Nc2
{[%clk 0:00:26.4]} 39. Bd7 {[%clk 0:03:35.6]} 39... Nd4+ {[%clk 0:00:17.2]} 40.
Ke4 {[%clk 0:03:33.6]} 40... Nc2 {[%clk 0:00:09.2]} 41. h5 {[%clk 0:03:29.2]}
41... Ne1 {[%clk 0:00:01.8]} 42. g4 {[%clk 0:03:28]} 1-0

[Event "Live Chess"]
[Site "Chess.com"]
[Date "2024.06.02"]
[Round "-"]
[White "IgorSchukin"]
[Black "Mikhail_Golubev"]
[Result "0-1"]
[WhiteElo "1771"]
[BlackElo "2553"]
[TimeControl "300"]
[EndTime "19:47:54 PDT"]
[Termination "Mikhail_Golubev won by resignation"]

1. e4 {[%clk 0:04:57.4]} 1... g6 {[%clk 0:04:59.2]} 2. Nf3 {[%clk 0:04:54.6]}
2... Bg7 {[%clk 0:04:58.3]} 3. Bc4 {[%clk 0:04:53.7]} 3... e6 {[%clk 0:04:50.6]}
4. O-O {[%clk 0:04:52.4]} 4... d5 {[%clk 0:04:45]} 5. exd5 {[%clk 0:04:50.9]}
5... exd5 {[%clk 0:04:44.9]} 6. Bb3 {[%clk 0:04:49.4]} 6... Ne7 {[%clk
0:04:34.8]} 7. Re1 {[%clk 0:04:47.2]} 7... O-O {[%clk 0:04:33.2]} 8. d4 {[%clk
0:04:40.6]} 8... Bg4 {[%clk 0:04:04.7]} 9. c3 {[%clk 0:04:38.8]} 9... Nf5 {[%clk
0:03:35.1]} 10. h3 {[%clk 0:04:34.1]} 10... Bxf3 {[%clk 0:03:34.3]} 11. Qxf3
{[%clk 0:04:32.6]} 11... c6 {[%clk 0:03:34.1]} 12. Bf4 {[%clk 0:04:29.3]} 12...
Na6 {[%clk 0:03:23.3]} 13. Bc2 {[%clk 0:04:22.8]} 13... Nd6 {[%clk 0:03:17.5]}
14. Bxd6 {[%clk 0:04:17.1]} 14... Qxd6 {[%clk 0:03:16.1]} 15. Nd2 {[%clk
0:04:15.7]} 15... Nc7 {[%clk 0:03:13.4]} 16. Re2 {[%clk 0:04:09.1]} 16... Ne6
{[%clk 0:03:11]} 17. Rae1 {[%clk 0:04:07.1]} 17... Bxd4 {[%clk 0:02:49.8]} 18.
cxd4 {[%clk 0:03:34.9]} 18... Nxd4 {[%clk 0:02:49.7]} 19. Qd3 {[%clk 0:03:33.5]}
19... Nxe2+ {[%clk 0:02:48.3]} 20. Rxe2 {[%clk 0:03:31.6]} 20... Rfe8 {[%clk
0:02:42.8]} 21. Ne4 {[%clk 0:03:15.2]} 21... Qe5 {[%clk 0:02:32.6]} 22. Ng3
{[%clk 0:03:08.9]} 22... Qxb2 {[%clk 0:02:25.3]} 23. Bb3 {[%clk 0:02:25.4]}
23... Rxe2 {[%clk 0:02:21.3]} 24. Nxe2 {[%clk 0:02:24.3]} 24... Re8 {[%clk
0:02:04.2]} 25. Nf4 {[%clk 0:01:50.7]} 25... Re1+ {[%clk 0:01:59.3]} 26. Kh2
{[%clk 0:01:49.2]} 26... Qxf2 {[%clk 0:01:55.9]} 0-1

[Event "Live Chess"]
[Site "Chess.com"]
[Date "2024.06.02"]
[Round "-"]
[White "grillage"]
[Black "Mangoalo"]
[Result "1-0"]
[WhiteElo "1854"]
[BlackElo "1069"]
[TimeControl "300"]
[EndTime "19:48:24 PDT"]
[Termination "grillage won by resignation"]

1. d4 {[%clk 0:04:57.4]} 1... Nf6 {[%clk 0:04:42.8]} 2. Nf3 {[%clk 0:04:53.6]}
2... d5 {[%clk 0:04:42]} 3. c4 {[%clk 0:04:52.8]} 3... dxc4 {[%clk 0:04:40.8]}
4. e3 {[%clk 0:04:51.1]} 4... Bg4 {[%clk 0:04:38.4]} 5. Bxc4 {[%clk 0:04:49.3]}
5... e6 {[%clk 0:04:36.6]} 6. O-O {[%clk 0:04:46.7]} 6... Bb4 {[%clk 0:04:32.7]}
7. a3 {[%clk 0:04:43.6]} 7... Bxf3 {[%clk 0:04:15.6]} 8. Qxf3 {[%clk 0:04:40.8]}
8... Bd6 {[%clk 0:03:59.3]} 9. Nc3 {[%clk 0:04:35.6]} 9... O-O {[%clk
0:03:58.1]} 10. b4 {[%clk 0:04:31]} 10... Nbd7 {[%clk 0:03:56.1]} 11. Bb2 {[%clk
0:04:28.5]} 11... Re8 {[%clk 0:03:54.9]} 12. Rac1 {[%clk 0:04:23.9]} 12... b6
{[%clk 0:03:53.9]} 13. Bd3 {[%clk 0:04:21]} 13... c5 {[%clk 0:03:52.4]} 14. Ne4
{[%clk 0:04:00.8]} 14... Nxe4 {[%clk 0:03:49.3]} 15. Bxe4 {[%clk 0:03:59.3]}
15... cxd4 {[%clk 0:03:49.2]} 16. Bxa8 {[%clk 0:03:56.5]} 16... dxe3 {[%clk
0:03:39.5]} 17. Be4 {[%clk 0:03:48.7]} 17... exf2+ {[%clk 0:03:37.7]} 18. Qxf2
{[%clk 0:03:45.8]} 18... Qe7 {[%clk 0:03:34.4]} 19. Bc6 {[%clk 0:03:40.6]} 19...
g6 {[%clk 0:03:32.4]} 20. Rcd1 {[%clk 0:03:33.5]} 20... Rf8 {[%clk 0:03:28.1]}
21. Qd4 {[%clk 0:03:27.1]} 21... e5 {[%clk 0:03:23.3]} 22. Qxd6 {[%clk
0:03:25.4]} 22... Qxd6 {[%clk 0:03:21.2]} 23. Rxd6 {[%clk 0:03:23.4]} 23... Nf6
{[%clk 0:03:21.1]} 24. Rdxf6 {[%clk 0:03:21.8]} 1-0

[Event "Live Chess"]
[Site "Chess.com"]
[Date "2024.06.02"]
[Round "-"]
[White "NeilDruggan73"]
[Black "Dhaydon19"]
[Result "0-1"]
[WhiteElo "1779"]
[BlackElo "2683"]
[TimeControl "300"]
[EndTime "19:49:21 PDT"]
[Termination "Dhaydon19 won by resignation"]

1. d4 {[%clk 0:04:56.8]} 1... c6 {[%clk 0:04:59.6]} 2. Nf3 {[%clk 0:04:49.9]}
2... Nf6 {[%clk 0:04:58.9]} 3. Bg5 {[%clk 0:04:45.8]} 3... d5 {[%clk 0:04:58.4]}
4. Bxf6 {[%clk 0:04:44.5]} 4... exf6 {[%clk 0:04:56.6]} 5. e3 {[%clk 0:04:43.6]}
5... Bd6 {[%clk 0:04:56.1]} 6. Bd3 {[%clk 0:04:41.8]} 6... g6 {[%clk 0:04:55.3]}
7. Nbd2 {[%clk 0:04:23.5]} 7... f5 {[%clk 0:04:53.9]} 8. g3 {[%clk 0:04:17.4]}
8... Nd7 {[%clk 0:04:52.3]} 9. h4 {[%clk 0:04:14.6]} 9... Nf6 {[%clk 0:04:51.3]}
10. c3 {[%clk 0:04:10.1]} 10... O-O {[%clk 0:04:49.9]} 11. Qe2 {[%clk
0:04:02.9]} 11... Re8 {[%clk 0:04:47.3]} 12. O-O-O {[%clk 0:04:00.5]} 12... h5
{[%clk 0:04:44.5]} 13. Qf1 {[%clk 0:03:56.9]} 13... Kg7 {[%clk 0:04:42]} 14. Qg2
{[%clk 0:03:50.9]} 14... Ne4 {[%clk 0:04:36.5]} 15. Bxe4 {[%clk 0:03:47.3]}
15... fxe4 {[%clk 0:04:33.4]} 16. Nh2 {[%clk 0:03:37.3]} 16... f5 {[%clk
0:04:31.7]} 17. Rde1 {[%clk 0:03:26.5]} 17... Bd7 {[%clk 0:04:28.8]} 18. f3
{[%clk 0:03:25.6]} 18... exf3 {[%clk 0:04:28]} 19. Ndxf3 {[%clk 0:03:24.4]}
19... Qf6 {[%clk 0:04:27.4]} 20. Rhf1 {[%clk 0:03:17.1]} 20... Re7 {[%clk
0:04:24.4]} 21. Rf2 {[%clk 0:03:11]} 21... Rae8 {[%clk 0:04:22.4]} 22. Rfe2
{[%clk 0:03:10.4]} 22... c5 {[%clk 0:04:19.3]} 23. Nf1 {[%clk 0:03:00.8]} 23...
Bb5 {[%clk 0:04:15.5]} 24. Rd2 {[%clk 0:02:52.6]} 24... Bxf1 {[%clk 0:04:13.8]}
25. Qxf1 {[%clk 0:02:49.2]} 25... Rxe3 {[%clk 0:04:13.2]} 26. Rxe3 {[%clk
0:02:46.8]} 26... Rxe3 {[%clk 0:04:10.3]} 27. Qf2 {[%clk 0:02:43.6]} 27... Qe7
{[%clk 0:04:04.4]} 28. Ne5 {[%clk 0:02:36.5]} 28... Re4 {[%clk 0:04:00.4]} 29.
Nf3 {[%clk 0:02:30.1]} 29... f4 {[%clk 0:03:52.8]} 30. gxf4 {[%clk 0:02:11.6]}
30... Bxf4 {[%clk 0:03:50.6]} 31. Ne5 {[%clk 0:02:03.6]} 31... cxd4 {[%clk
0:03:41.9]} 32. cxd4 {[%clk 0:01:41.3]} 32... Qxh4 {[%clk 0:03:39.1]} 33. Qxh4
{[%clk 0:01:39.3]} 33... Bxd2+ {[%clk 0:03:37]} 34. Kxd2 {[%clk 0:01:37.9]}
34... Rxh4 {[%clk 0:03:36.7]} 35. Kd3 {[%clk 0:01:29.3]} 35... Rh3+ {[%clk
0:03:34.1]} 36. Kc2 {[%clk 0:01:27.3]} 36... Rh2+ {[%clk 0:03:33.5]} 37. Kc3
{[%clk 0:01:25.7]} 37... h4 {[%clk 0:03:32.9]} 38. Nd3 {[%clk 0:01:15.7]} 38...
Rh3 {[%clk 0:03:31.5]} 39. Kd2 {[%clk 0:01:11.7]} 39... Rxd3+ {[%clk 0:03:30.9]}
40. Kxd3 {[%clk 0:01:09.9]} 40... h3 {[%clk 0:03:30.6]} 0-1

[Event "Live Chess"]
[Site "Chess.com"]
[Date "2024.06.02"]
[Round "-"]
[White "RafaelRony"]
[Black "ShanthamGrarks"]
[Result "0-1"]
[WhiteElo "1064"]
[BlackElo "1897"]
[TimeControl "300"]
[EndTime "19:51:46 PDT"]
[Termination "ShanthamGrarks won by resignation"]

1. e4 {[%clk 0:04:56.1]} 1... e6 {[%clk 0:04:53.8]} 2. d4 {[%clk 0:04:51.7]}
2... d5 {[%clk 0:04:52.9]} 3. exd5 {[%clk 0:04:50.2]} 3... exd5 {[%clk
0:04:49.9]} 4. Nf3 {[%clk 0:04:47]} 4... Nf6 {[%clk 0:04:48.4]} 5. Be2 {[%clk
0:04:43.9]} 5... Bd6 {[%clk 0:04:47.7]} 6. O-O {[%clk 0:04:42.2]} 6... O-O
{[%clk 0:04:47.2]} 7. Re1 {[%clk 0:04:36.4]} 7... Bg4 {[%clk 0:04:46.6]} 8. h3
{[%clk 0:04:34.3]} 8... Bh5 {[%clk 0:04:44.6]} 9. Nbd2 {[%clk 0:04:25.9]} 9...
Nbd7 {[%clk 0:04:42.2]} 10. c3 {[%clk 0:04:24.4]} 10... c6 {[%clk 0:04:36.5]}
11. Qc2 {[%clk 0:04:20.2]} 11... Bg6 {[%clk 0:04:34.6]} 12. Bd3 {[%clk
0:04:16.6]} 12... Qc7 {[%clk 0:04:32.1]} 13. Bxg6 {[%clk 0:04:12.4]} 13... hxg6
{[%clk 0:04:30.1]} 14. Nf1 {[%clk 0:04:11.7]} 14... Rae8 {[%clk 0:04:27.3]} 15.
Be3 {[%clk 0:04:09]} 15... Ne4 {[%clk 0:04:25]} 16. N1d2 {[%clk 0:04:06.6]}
16... Ndf6 {[%clk 0:04:20]} 17. Kh1 {[%clk 0:03:58.5]} 17... Bf4 {[%clk
0:04:14.6]} 18. Kg1 {[%clk 0:03:52.5]} 18... Bxe3 {[%clk 0:04:11.7]} 19. Rxe3
{[%clk 0:03:51.9]} 19... Qf4 {[%clk 0:04:08.1]} 20. Rae1 {[%clk 0:03:29.1]}
20... Nxd2 {[%clk 0:04:01.2]} 21. Nxd2 {[%clk 0:03:17.7]} 21... Rxe3 {[%clk
0:03:57.5]} 22. Rxe3 {[%clk 0:02:39.3]} 22... g5 {[%clk 0:03:47.8]} 23. Rg3
{[%clk 0:02:16.7]} 23... Re8 {[%clk 0:03:43.1]} 24. Nf3 {[%clk 0:02:10.1]} 24...
Ne4 {[%clk 0:03:38]} 25. Rg4 {[%clk 0:02:02.9]} 25... Qf6 {[%clk 0:03:31]} 26.
Qb3 {[%clk 0:01:46.9]} 26... b6 {[%clk 0:03:27]} 27. Qc2 {[%clk 0:01:23.2]}
27... Re6 {[%clk 0:03:21.3]} 28. Nd2 {[%clk 0:01:20.5]} 28... Qxf2+ {[%clk
0:03:17.2]} 29. Kh1 {[%clk 0:01:14.9]} 29... Qxd2 {[%clk 0:03:14.1]} 30. Qxd2
{[%clk 0:01:11.6]} 0-1

[Event "Live Chess"]
[Site "Chess.com"]
[Date "2024.06.02"]
[Round "-"]
[White "booktrunk"]
[Black "KeithArkell"]
[Result "0-1"]
[WhiteElo "1509"]
[BlackElo "2432"]
[TimeControl "300"]
[EndTime "19:52:12 PDT"]
[Termination "KeithArkell won by resignation"]

1. d4 {[%clk 0:04:56.6]} 1... e6 {[%clk 0:04:59]} 2. Nc3 {[%clk 0:04:49]} 2...
d5 {[%clk 0:04:55.8]} 3. Nf3 {[%clk 0:04:45.1]} 3... Nf6 {[%clk 0:04:54.4]} 4.
e3 {[%clk 0:04:43.1]} 4... Bb4 {[%clk 0:04:51.7]} 5. Bd2 {[%clk 0:04:39.9]} 5...
b6 {[%clk 0:04:48.1]} 6. a3 {[%clk 0:04:31.2]} 6... Bxc3 {[%clk 0:04:40]} 7.
Bxc3 {[%clk 0:04:26.6]} 7... O-O {[%clk 0:04:39]} 8. Bd3 {[%clk 0:04:12.8]} 8...
Ba6 {[%clk 0:04:36.6]} 9. Bxa6 {[%clk 0:04:10.1]} 9... Nxa6 {[%clk 0:04:32.9]}
10. Qd3 {[%clk 0:04:08.4]} 10... Qc8 {[%clk 0:04:10.6]} 11. O-O {[%clk
0:04:00.4]} 11... c5 {[%clk 0:04:09.4]} 12. dxc5 {[%clk 0:03:36.4]} 12... Nxc5
{[%clk 0:03:51.9]} 13. Qe2 {[%clk 0:03:26.7]} 13... Nce4 {[%clk 0:03:50.6]} 14.
Bd4 {[%clk 0:03:24.6]} 14... Re8 {[%clk 0:03:49.7]} 15. Be5 {[%clk 0:03:20.4]}
15... Ng4 {[%clk 0:03:45.1]} 16. Bf4 {[%clk 0:03:07.1]} 16... e5 {[%clk
0:03:42.8]} 17. Bg3 {[%clk 0:02:58.1]} 17... Nxg3 {[%clk 0:03:42]} 18. fxg3
{[%clk 0:02:55.6]} 18... Qc5 {[%clk 0:03:36.3]} 19. Rfe1 {[%clk 0:02:50.2]}
19... Rac8 {[%clk 0:03:33.8]} 20. Rac1 {[%clk 0:02:46.8]} 20... h6 {[%clk
0:03:30.7]} 21. h3 {[%clk 0:02:29.3]} 21... Nf6 {[%clk 0:03:29.3]} 22. Nh4
{[%clk 0:02:19.8]} 22... g6 {[%clk 0:03:22]} 23. Nf3 {[%clk 0:02:13.9]} 23...
Ne4 {[%clk 0:03:20.1]} 24. Qf2 {[%clk 0:02:08.5]} 24... Nxf2 {[%clk 0:03:19]}
0-1

[Event "Live Chess"]
[Site "Chess.com"]
[Date "2024.06.02"]
[Round "-"]
[White "Dhaydon19"]
[Black "juniortay"]
[Result "1-0"]
[WhiteElo "2686"]
[BlackElo "2425"]
[TimeControl "300"]
[EndTime "19:52:43 PDT"]
[Termination "Dhaydon19 won by resignation"]

1. d4 {[%clk 0:04:58.1]} 1... Nf6 {[%clk 0:04:58.6]} 2. Nf3 {[%clk 0:04:57.4]}
2... g6 {[%clk 0:04:58]} 3. g3 {[%clk 0:04:57.1]} 3... Bg7 {[%clk 0:04:57.4]} 4.
Bg2 {[%clk 0:04:56.7]} 4... O-O {[%clk 0:04:57.3]} 5. O-O {[%clk 0:04:56.2]}
5... d6 {[%clk 0:04:57.2]} 6. c3 {[%clk 0:04:54.6]} 6... c6 {[%clk 0:04:57.1]}
7. Nbd2 {[%clk 0:04:50]} 7... Qa5 {[%clk 0:04:56.6]} 8. Re1 {[%clk 0:04:47.9]}
8... Qh5 {[%clk 0:04:55.7]} 9. e4 {[%clk 0:04:47.4]} 9... Bg4 {[%clk 0:04:54.9]}
10. Nf1 {[%clk 0:04:42.8]} 10... e5 {[%clk 0:04:53.8]} 11. Ne3 {[%clk
0:04:40.7]} 11... exd4 {[%clk 0:04:43.3]} 12. Nxg4 {[%clk 0:04:37.5]} 12... Qxg4
{[%clk 0:04:36.9]} 13. cxd4 {[%clk 0:04:35.9]} 13... d5 {[%clk 0:04:17.6]} 14.
e5 {[%clk 0:04:32.8]} 14... Ne4 {[%clk 0:04:16.3]} 15. Be3 {[%clk 0:04:31.4]}
15... Nd7 {[%clk 0:04:10.7]} 16. Nd2 {[%clk 0:04:19.8]} 16... Nxd2 {[%clk
0:04:08.8]} 17. Qxg4 {[%clk 0:04:17.9]} 1-0

[Event "Live Chess"]
[Site "Chess.com"]
[Date "2024.06.02"]
[Round "-"]
[White "grillage"]
[Black "educatedlad"]
[Result "1-0"]
[WhiteElo "1860"]
[BlackElo "1738"]
[TimeControl "300"]
[EndTime "19:53:17 PDT"]
[Termination "grillage won by checkmate"]

1. d4 {[%clk 0:04:54.9]} 1... Nf6 {[%clk 0:04:59.9]} 2. Nf3 {[%clk 0:04:53.4]}
2... d5 {[%clk 0:04:59.8]} 3. c4 {[%clk 0:04:51.8]} 3... g6 {[%clk 0:04:59.7]}
4. cxd5 {[%clk 0:04:48.5]} 4... Nxd5 {[%clk 0:04:59.6]} 5. e4 {[%clk 0:04:47.5]}
5... Nb6 {[%clk 0:04:56.7]} 6. Nc3 {[%clk 0:04:46.5]} 6... Bg7 {[%clk
0:04:55.7]} 7. Be3 {[%clk 0:04:44.5]} 7... O-O {[%clk 0:04:54.6]} 8. Be2 {[%clk
0:04:42.8]} 8... Nc6 {[%clk 0:04:52]} 9. O-O {[%clk 0:04:39.7]} 9... e6 {[%clk
0:04:50.1]} 10. Qd2 {[%clk 0:04:24.2]} 10... Qe7 {[%clk 0:04:43.9]} 11. Rfd1
{[%clk 0:04:16.3]} 11... Rd8 {[%clk 0:04:39.4]} 12. Bg5 {[%clk 0:04:00.2]} 12...
f6 {[%clk 0:04:37.8]} 13. Be3 {[%clk 0:03:58.6]} 13... e5 {[%clk 0:04:36.4]} 14.
d5 {[%clk 0:03:57.1]} 14... Nb8 {[%clk 0:04:29.3]} 15. Qc2 {[%clk 0:03:50.8]}
15... c6 {[%clk 0:04:27.6]} 16. a4 {[%clk 0:03:16.7]} 16... cxd5 {[%clk
0:04:25.6]} 17. exd5 {[%clk 0:03:10]} 17... Bf5 {[%clk 0:04:24.5]} 18. Bd3
{[%clk 0:02:56.9]} 18... Nxd5 {[%clk 0:04:01.4]} 19. Nxd5 {[%clk 0:02:37.8]}
19... Rxd5 {[%clk 0:03:55.4]} 20. Bxf5 {[%clk 0:02:33.8]} 20... Rxd1+ {[%clk
0:03:54.2]} 21. Rxd1 {[%clk 0:02:32.1]} 21... gxf5 {[%clk 0:03:52.8]} 22. Qxf5
{[%clk 0:02:26.5]} 22... Nc6 {[%clk 0:03:49.4]} 23. Rd7 {[%clk 0:02:21.1]} 23...
Qe8 {[%clk 0:03:30.7]} 24. Qg4 {[%clk 0:02:05.7]} 24... Qf8 {[%clk 0:03:26]} 25.
Bc5 {[%clk 0:02:00.1]} 25... Qxc5 {[%clk 0:03:16.9]} 26. Qxg7# {[%clk
0:01:58.6]} 1-0

[Event "Live Chess"]
[Site "Chess.com"]
[Date "2024.06.02"]
[Round "-"]
[White "MagnersCarlsberg2870"]
[Black "IgorSchukin"]
[Result "1-0"]
[WhiteElo "1822"]
[BlackElo "1764"]
[TimeControl "300"]
[EndTime "19:55:10 PDT"]
[Termination "MagnersCarlsberg2870 won by checkmate"]

1. d4 {[%clk 0:04:56.9]} 1... d5 {[%clk 0:04:58.6]} 2. e3 {[%clk 0:04:55.9]}
2... Nf6 {[%clk 0:04:56.9]} 3. Bd3 {[%clk 0:04:55.1]} 3... g6 {[%clk 0:04:56.4]}
4. Nd2 {[%clk 0:04:54.1]} 4... Bg7 {[%clk 0:04:56]} 5. Ngf3 {[%clk 0:04:52.9]}
5... O-O {[%clk 0:04:55.6]} 6. Ne5 {[%clk 0:04:51.8]} 6... Nbd7 {[%clk
0:04:53.7]} 7. f4 {[%clk 0:04:50.4]} 7... Nxe5 {[%clk 0:04:49.5]} 8. fxe5 {[%clk
0:04:49.3]} 8... Bg4 {[%clk 0:04:46.3]} 9. Be2 {[%clk 0:04:47.3]} 9... Bxe2
{[%clk 0:04:44.3]} 10. Qxe2 {[%clk 0:04:46.5]} 10... Ne4 {[%clk 0:04:41]} 11.
Nxe4 {[%clk 0:04:39.4]} 11... dxe4 {[%clk 0:04:39.7]} 12. h4 {[%clk 0:04:37]}
12... h5 {[%clk 0:04:37.9]} 13. g4 {[%clk 0:04:35.4]} 13... hxg4 {[%clk
0:04:33]} 14. h5 {[%clk 0:04:34.5]} 14... gxh5 {[%clk 0:04:25.3]} 15. Rxh5
{[%clk 0:04:33.3]} 15... f5 {[%clk 0:04:19.9]} 16. Qc4+ {[%clk 0:04:19.7]} 16...
Rf7 {[%clk 0:04:16.4]} 17. Rxf5 {[%clk 0:04:18]} 17... Qf8 {[%clk 0:04:04.7]}
18. Bd2 {[%clk 0:04:15.5]} 18... b5 {[%clk 0:04:00.5]} 19. Qd5 {[%clk
0:04:11.6]} 19... c6 {[%clk 0:03:57.6]} 20. Qb3 {[%clk 0:04:04.3]} 20... Re8
{[%clk 0:03:50.2]} 21. O-O-O {[%clk 0:04:02.9]} 21... e6 {[%clk 0:03:49]} 22.
Rxf7 {[%clk 0:03:45.7]} 22... Qxf7 {[%clk 0:03:47.3]} 23. Bb4 {[%clk 0:03:35.7]}
23... Bf8 {[%clk 0:03:42.5]} 24. Bxf8 {[%clk 0:03:25.7]} 24... Rxf8 {[%clk
0:03:40.5]} 25. Rg1 {[%clk 0:03:22.7]} 25... Qg6 {[%clk 0:03:35.1]} 26. a3
{[%clk 0:03:09.7]} 26... Rf3 {[%clk 0:03:31.3]} 27. c4 {[%clk 0:03:02]} 27...
bxc4 {[%clk 0:03:27.3]} 28. Qxc4 {[%clk 0:03:01.2]} 28... Rxe3 {[%clk
0:03:19.7]} 29. Qxc6 {[%clk 0:02:59.8]} 29... Rd3 {[%clk 0:03:04.2]} 30. Qc8+
{[%clk 0:02:53]} 30... Kh7 {[%clk 0:03:00.7]} 31. Rh1+ {[%clk 0:02:48.1]} 31...
Rh3 {[%clk 0:02:59]} 32. Qd7+ {[%clk 0:02:43.4]} 32... Kh6 {[%clk 0:02:57.3]}
33. Rf1 {[%clk 0:02:36.5]} 33... Rf3 {[%clk 0:02:47.4]} 34. Rh1+ {[%clk
0:02:34.2]} 34... Kg5 {[%clk 0:02:42.1]} 35. Qe7+ {[%clk 0:02:30.6]} 35... Kf4
{[%clk 0:02:38]} 36. Qf8+ {[%clk 0:02:25.1]} 36... Ke3 {[%clk 0:02:36]} 37. Qb4
{[%clk 0:02:07.1]} 37... Rf2 {[%clk 0:02:19.9]} 38. Qc3+ {[%clk 0:01:51.6]}
38... Kf4 {[%clk 0:02:18.1]} 39. Rg1 {[%clk 0:01:47]} 39... Qg5 {[%clk
0:02:03.1]} 40. Qg3+ {[%clk 0:01:42]} 40... Kf5+ {[%clk 0:02:01.8]} 41. Kb1
{[%clk 0:01:40.9]} 41... Qf4 {[%clk 0:01:54.4]} 42. Qh4 {[%clk 0:01:26.6]} 42...
Rf1+ {[%clk 0:01:52.3]} 43. Rxf1 {[%clk 0:01:25.8]} 43... Qxf1+ {[%clk
0:01:51.3]} 44. Ka2 {[%clk 0:01:24.8]} 44... Qc4+ {[%clk 0:01:49.7]} 45. Kb1
{[%clk 0:01:23.7]} 45... Qxd4 {[%clk 0:01:43.2]} 46. Qf6# {[%clk 0:01:21.8]} 1-0